bitfinex/quotes_ETHUSD_20250626
["timestamp","ask_amount","ask_price","bid_price","bid_amount"]
[1750959381030,6.9266,2427.2,2426.9,4.32733]
[1750959381031,0.98459766,2427.1,2426.9,4.32733]
[1750959381236,0.98459766,2427.0,2426.9,4.32733]
[1750959381570,0.98459766,2427.1,2426.9,3.682]
[1750959381742,0.98459766,2427.0,2426.9,3.682]
[1750959381940,0.98459766,2427.1,2426.9,3.682]
[1750959382653,7.91119766,2427.2,2426.9,3.682]
[1750959383663,7.91119766,2427.2,2426.8,0.8237]
[1750959383847,0.98459766,2427.1,2426.8,0.8237]
[1750959384047,0.98459766,2427.1,2426.8,1.10083]
[1750959384669,11.19019766,2427.2,2426.8,1.10083]
[1750959387060,11.19019766,2427.2,2426.8,1.10083]
[1750959388269,0.98459766,2427.1,2426.8,1.10083]
[1750959389273,0.98459766,2427.1,2426.8,4.78283]
[1750959389442,0.98459766,2427.1,2426.8,3.95913]
[1750959392086,0.98459766,2427.1,2426.9,3.682]
[1750959393669,0.98459766,2427.0,2426.9,3.682]
[1750959393862,0.98459766,2427.1,2426.9,3.682]
[1750959394080,1.80789766,2427.0,2426.9,3.682]
[1750959395056,0.98459766,2427.0,2426.9,3.682]
[1750959395481,0.98459766,2427.1,2426.9,3.682]
[1750959395669,0.98459766,2427.0,2426.9,3.682]
[1750959395853,0.98459766,2427.1,2426.9,3.682]
[1750959396071,0.98459766,2427.0,2426.9,3.682]
[1750959396271,0.98459766,2427.1,2426.9,3.682]
[1750959396474,0.98459766,2427.0,2426.9,3.682]
[1750959396910,0.2056,2426.9,2426.8,0.7949]
[1750959397113,0.98459766,2427.1,2427.0,0.7949]
[1750959397417,0.98716464,2427.2,2427.1,0.2056]
[1750959397588,0.001,2427.3,2427.1,0.2056]
[1750959398377,0.001,2427.3,2427.1,0.7176959]
[1750959398580,0.001,2427.3,2427.2,6.441]
[1750959398790,0.001,2427.3,2427.2,7.4636]
[1750959400418,0.001,2427.3,2427.2,11.58357363]
[1750959400621,0.001,2427.3,2427.2,7.4636]
[1750959400916,0.001,2427.3,2427.2,9.86720277]
[1750959404089,0.001,2427.3,2427.2,8.12620277]
[1750959404294,0.001,2427.3,2427.2,9.86720277]
[1750959404709,0.001,2427.3,2427.2,8.12620277]
[1750959405020,0.001,2427.3,2427.2,9.86720277]
[1750959406414,0.001,2427.3,2427.2,8.12620277]
[1750959406622,0.001,2427.3,2427.2,7.4636]
[1750959407683,0.001,2427.3,2427.2,6.6466]
[1750959408633,0.001,2427.3,2427.2,4.7]
[1750959408799,0.9818,2427.3,2427.2,4.7]
[1750959414113,0.001,2427.3,2427.2,16.31027363]
[1750959414308,0.001,2427.3,2427.2,29.20854017]
[1750959416442,0.001,2427.3,2427.2,37.76068068]
[1750959417048,0.001,2427.3,2427.2,33.64070705]
[1750959417229,0.001,2427.3,2427.2,37.76068068]
[1750959417812,0.001,2427.3,2427.2,26.92370705]
[1750959418008,0.001,2427.3,2427.2,16.82756654]
[1750959418210,0.001,2427.3,2427.2,34.79968068]
[1750959418511,0.001,2427.5,2427.4,15.46453417]
[1750959418716,0.001,2427.5,2427.4,39.98330238]
[1750959419343,0.001,2427.5,2427.4,57.70660738]
[1750959419642,0.001,2427.5,2427.4,39.98330238]
[1750959420144,0.001,2427.5,2427.4,55.91354938]
[1750959420946,0.001,2427.5,2427.4,56.22067794]
[1750959421159,0.8007,2428.8,2427.4,56.22067794]
[1750959421160,0.001,2428.9,2428.3,0.55]
[1750959421344,0.001,2428.9,2428.4,48.23858457]
[1750959421524,0.001,2428.9,2428.4,44.65191557]
[1750959421926,0.001,2428.9,2428.4,43.52960357]
[1750959422445,0.001,2428.9,2428.4,40.76819157]
[1750959422649,0.001,2428.9,2428.4,43.66645811]
[1750959422860,0.001,2428.9,2428.4,31.00020427]
[1750959423544,0.001,2428.9,2428.4,26.88226654]
[1750959423834,0.001,2428.9,2428.4,31.00020427]
[1750959424052,0.001,2428.9,2428.4,26.88226654]
[1750959424252,0.2066,2428.9,2428.4,9.4906]
[1750959424455,0.7704,2428.8,2428.4,0.2056]
[1750959424779,0.7704,2428.4,2427.8,1.74]
[1750959425065,0.2056,2428.2,2427.8,1.9456]
[1750959426253,0.2056,2428.2,2427.8,6.92057]
[1750959426556,0.7976,2428.5,2427.8,13.47297]
[1750959426747,1.0032,2428.5,2428.0,0.2056]
[1750959426949,1.0032,2428.5,2428.0,4.9046]
[1750959427483,0.2066,2428.5,2428.0,4.9046]
[1750959427648,0.001,2428.5,2428.1,1.24496]
[1750959427843,0.001,2428.5,2428.4,0.2056]
[1750959428571,0.001,2428.5,2428.0,4.699]
[1750959428734,0.001,2428.5,2428.1,0.2056]
[1750959430750,0.7803,2428.4,2428.1,0.2056]
[1750959431478,0.7803,2428.4,2428.0,4.699]
[1750959431771,0.9859,2428.4,2428.0,4.9046]
[1750959431941,0.7803,2428.4,2428.0,4.699]
[1750959432141,0.2056,2428.2,2428.0,4.699]
[1750959432370,0.2056,2428.2,2428.1,4.699]
[1750959438996,0.7803,2428.4,2428.1,4.699]
[1750959439167,0.9859,2428.4,2428.1,5.1689]
[1750959439988,0.001,2428.5,2428.1,5.1689]
[1750959440165,0.2066,2428.5,2428.1,5.3745]
[1750959440371,0.001,2428.5,2428.4,0.2056]
[1750959442893,0.001,2428.5,2428.1,5.1689]
[1750959443075,0.001,2428.5,2428.2,1.19199]
[1750959444192,0.001,2428.5,2428.3,4.699]
[1750959445486,0.001,2428.5,2428.4,5.5277]
[1750959449994,0.001,2428.5,2428.4,4.699]
[1750959454216,0.001,2428.5,2428.4,4.9046]
[1750959454522,0.001,2428.5,2428.4,5.690659]
[1750959455222,0.001,2428.5,2428.4,5.485059]
[1750959455412,0.001,2428.5,2428.4,4.699]
[1750959458299,0.2066,2428.5,2428.4,4.699]
[1750959462405,0.998,2428.5,2428.4,4.699]
[1750959464333,1.97989431,2428.5,2428.4,4.699]
[1750959464523,0.998,2428.5,2428.4,4.699]
[1750959464724,13.58972887,2428.5,2428.4,4.699]
[1750959467819,13.58972887,2428.5,2428.0,4.699]
[1750959468019,0.2056,2428.1,2428.0,4.699]
[1750959470855,0.9808,2428.1,2428.0,4.699]
[1750959475145,0.2056,2428.1,2428.0,4.699]
[1750959479753,0.2056,2428.1,2427.6,2.7897]
[1750959479754,0.8077,2428.0,2427.7,4.699]
[1750959479969,0.8077,2428.0,2427.3,0.002]
[1750959479970,18.54571839,2427.8,2427.4,4.699]
[1750959480270,15.47733417,2427.4,2427.3,0.002]
[1750959480419,22.20633417,2427.4,2427.3,0.002]
[1750959480815,1.79347057,2427.4,2427.3,0.002]
[1750959481050,8.52747057,2427.4,2427.3,0.002]
[1750959481263,10.55591763,2427.4,2427.3,0.002]
[1750959482145,0.98577057,2427.4,2427.3,0.002]
[1750959482346,0.2056,2427.4,2427.3,0.002]
[1750959483649,8.2842,2427.4,2427.3,0.002]
[1750959483886,19.26997057,2427.4,2427.3,0.002]
[1750959484336,18.2842,2427.4,2427.3,0.002]
[1750959484537,21.3791477,2427.4,2427.3,0.002]
[1750959487477,14.6271477,2427.4,2427.3,0.002]
[1750959487690,21.3791477,2427.4,2427.3,0.002]
[1750959489509,10.9822,2427.4,2427.3,0.002]
[1750959489703,17.7312,2427.4,2427.3,0.002]
[1750959490414,10.2056,2427.4,2427.3,0.002]
[1750959490611,0.2056,2427.4,2427.3,0.002]
[1750959491384,0.2056,2427.4,2427.3,4.701]
[1750959494111,1.0002,2427.4,2427.3,4.701]
[1750959498550,10.2056,2427.6,2427.3,4.701]
[1750959498918,0.2056,2427.6,2427.3,4.701]
[1750959499085,6.752,2427.5,2427.3,4.701]
[1750959499412,7.5165,2427.5,2427.3,4.701]
[1750959499613,8.26815,2427.5,2427.3,4.701]
[1750959500316,8.26815,2427.5,2427.3,0.002]
[1750959503520,6.752,2427.5,2427.3,0.002]
[1750959503726,1.79538446,2427.9,2427.3,0.8168]
[1750959503894,10.2056,2427.7,2427.4,4.699]
[1750959504922,10.0,2427.7,2427.4,4.699]
[1750959505126,13.59419686,2427.7,2427.4,4.699]
[1750959505314,12.61064184,2427.7,2427.4,4.699]
[1750959506322,10.0,2427.7,2427.4,4.699]
[1750959506506,0.2056,2427.6,2427.4,4.699]
[1750959509417,1.18988629,2427.6,2427.5,4.699]
[1750959509594,0.2056,2427.6,2427.5,4.699]
[1750959509920,1.18988629,2427.6,2427.5,4.699]
[1750959510223,0.2056,2427.6,2427.5,4.699]
[1750959511423,0.98428629,2428.0,2427.5,6.05148]
[1750959511747,1.18988629,2427.9,2427.5,6.25708]
[1750959511942,0.98428629,2427.8,2427.5,6.25708]
[1750959512746,0.98428629,2427.8,2427.6,4.699]
[1750959513649,0.2056,2427.9,2427.6,4.699]
[1750959513937,0.2056,2427.9,2427.7,0.62105042]
[1750959514143,1.18988629,2427.9,2427.6,4.699]
[1750959514310,0.2056,2427.9,2427.6,4.699]
[1750959514506,0.2056,2427.9,2427.7,4.699]
[1750959514713,0.98428629,2427.8,2427.7,4.699]
[1750959516767,24.46606011,2427.8,2427.7,4.699]
[1750959517064,27.3245481,2427.8,2427.7,4.699]
[1750959517458,23.20559267,2427.8,2427.7,4.699]
[1750959517655,27.3245481,2427.8,2427.7,4.699]
[1750959518134,0.2056,2427.7,2427.3,0.002]
[1750959518334,0.2056,2427.4,2427.3,0.002]
[1750959519142,0.62949725,2427.4,2427.3,0.002]
[1750959519651,1.61378354,2427.4,2427.3,0.002]
[1750959519856,0.62949725,2427.4,2427.3,0.002]
[1750959520029,2.43138354,2427.4,2427.3,0.002]
[1750959520234,0.62949725,2427.4,2427.3,0.002]
[1750959520434,1.61378354,2427.4,2427.3,0.002]
[1750959520680,0.62949725,2427.4,2427.3,0.002]
[1750959520975,1.61378354,2427.4,2427.3,0.002]
[1750959521137,0.62949725,2427.4,2427.3,0.002]
[1750959521332,1.61378354,2427.4,2427.3,0.002]
[1750959521574,0.62949725,2427.4,2427.3,0.002]
[1750959521777,1.61378354,2427.4,2427.3,0.002]
[1750959522066,0.62949725,2427.4,2427.3,0.002]
[1750959522263,1.61378354,2427.4,2427.3,0.002]
[1750959522568,0.62949725,2427.4,2427.3,0.002]
[1750959522746,1.61378354,2427.4,2427.3,0.002]
[1750959522947,0.62949725,2427.4,2427.3,0.002]
[1750959523148,1.61378354,2427.4,2427.3,0.002]
[1750959523350,0.62949725,2427.4,2427.3,0.002]
[1750959523549,1.61378354,2427.4,2427.3,0.002]
[1750959523753,0.62949725,2427.4,2427.3,0.002]
[1750959523959,1.61378354,2427.4,2427.3,4.701]
[1750959524159,0.62949725,2427.4,2427.3,4.701]
[1750959524390,1.61378354,2427.4,2427.3,4.701]
[1750959524682,0.62949725,2427.4,2427.3,4.701]
[1750959524887,1.61378354,2427.4,2427.3,4.701]
[1750959525184,0.62949725,2427.4,2427.3,4.701]
[1750959525369,1.61378354,2427.4,2427.3,4.701]
[1750959525570,0.62949725,2427.4,2427.3,4.701]
[1750959525759,1.61378354,2427.4,2427.3,4.701]
[1750959525960,0.62949725,2427.4,2427.3,4.701]
[1750959526272,1.61378354,2427.4,2427.3,4.701]
[1750959526472,0.62949725,2427.4,2427.3,4.701]
[1750959526664,1.61378354,2427.4,2427.3,4.701]
[1750959527281,0.62949725,2427.4,2427.3,4.701]
[1750959528482,7.38049725,2427.4,2427.3,4.701]
[1750959528682,6.9566,2427.4,2427.3,4.701]
[1750959529857,0.2056,2427.4,2427.3,4.701]
[1750959530060,6.747,2427.6,2427.3,4.701]
[1750959530274,6.9526,2427.6,2427.3,4.701]
[1750959531184,0.2056,2427.6,2427.4,0.8102]
[1750959531391,10.0,2427.7,2427.4,1.36132]
[1750959531797,0.98654133,2427.6,2427.4,0.8102]
[1750959532807,0.98654133,2427.7,2427.4,0.8102]
[1750959532978,0.98654133,2427.6,2427.4,0.8102]
[1750959533180,0.001,2428.5,2427.6,4.89308788]
[1750959533378,0.001,2428.5,2427.7,7.2378]
[1750959533379,0.2056,2428.1,2427.7,7.2378]
[1750959533798,1.19157725,2428.1,2427.7,7.2378]
[1750959533998,0.2056,2428.1,2427.7,7.2378]
[1750959534202,1.19157725,2428.1,2427.7,7.2378]
[1750959534400,0.2056,2428.1,2427.7,7.2378]
[1750959534603,1.19157725,2428.1,2427.7,7.2378]
[1750959534766,0.2056,2428.1,2427.7,7.2378]
[1750959534967,1.19157725,2428.1,2427.7,7.2378]
[1750959535303,0.2056,2428.1,2427.7,7.98214]
[1750959535505,1.19157725,2428.1,2427.7,7.98214]
[1750959535703,0.2056,2428.1,2427.7,7.98214]
[1750959535890,1.19157725,2428.1,2427.7,7.98214]
[1750959536092,0.2056,2428.1,2427.7,7.98214]
[1750959538792,0.2056,2428.1,2427.8,4.699]
[1750959540173,0.2056,2428.1,2427.8,5.517774]
[1750959541406,0.2056,2428.1,2427.8,4.699]
[1750959542297,0.2056,2428.1,2427.3,0.002]
[1750959542298,19.29921839,2427.9,2427.3,0.002]
[1750959542468,0.7535,2427.5,2427.3,0.002]
[1750959543132,2.75871956,2427.6,2427.3,0.002]
[1750959543416,10.7535,2427.7,2427.3,0.002]
[1750959543601,1.74325833,2427.9,2427.3,0.002]
[1750959543907,10.0,2427.7,2427.4,0.8226]
[1750959544216,10.98475833,2427.7,2427.4,0.8226]
[1750959547610,10.98475833,2427.7,2427.5,4.699]
[1750959547812,6.766,2428.1,2427.7,0.7901]
[1750959549314,10.0,2428.0,2427.7,0.7901]
[1750959550309,0.7669,2428.3,2427.7,0.7901]
[1750959550622,10.0,2428.2,2427.7,2.5581]
[1750959550824,10.0,2428.2,2427.8,0.72571]
[1750959551134,10.0,2428.2,2427.9,4.699]
[1750959551289,10.98466073,2428.2,2427.9,4.699]
[1750959551489,10.98466975,2428.2,2427.9,4.699]
[1750959552443,0.2056,2428.1,2427.9,4.699]
[1750959554221,0.2056,2428.1,2427.9,5.42461]
[1750959555092,10.98466975,2428.2,2427.9,5.42461]
[1750959555291,0.98466975,2428.2,2427.9,5.42461]
[1750959555504,6.9636,2428.3,2427.9,5.42461]
[1750959555703,7.94826975,2428.3,2427.9,5.42461]
[1750959555921,6.9636,2428.3,2427.9,5.42461]
[1750959556111,7.94826975,2428.3,2427.9,5.42461]
[1750959556314,6.9636,2428.3,2427.9,5.42461]
[1750959556641,7.94826975,2428.3,2428.0,4.699]
[1750959556793,6.9636,2428.3,2428.0,4.699]
[1750959556994,7.94826975,2428.3,2428.0,4.699]
[1750959557194,6.9636,2428.3,2428.0,4.699]
[1750959557491,7.94826975,2428.3,2428.0,4.699]
[1750959557690,6.9636,2428.3,2428.0,4.699]
[1750959557922,7.94826975,2428.3,2428.0,4.699]
[1750959558127,6.9636,2428.3,2428.0,4.699]
[1750959558328,0.98466975,2428.2,2428.0,4.699]
[1750959559387,10.32521512,2428.2,2428.0,4.699]
[1750959559609,1.76056975,2428.1,2428.0,4.699]
[1750959559807,0.98466975,2428.1,2428.0,4.699]
[1750959562940,20.85718814,2428.1,2428.0,4.699]
[1750959563942,0.7932,2427.9,2427.4,4.699]
[1750959564098,7.31875289,2427.8,2427.4,4.699]
[1750959564299,0.2056,2427.5,2427.4,4.699]
[1750959568139,6.752,2427.8,2427.4,4.699]
[1750959568326,0.2056,2427.7,2427.6,0.8283]
[1750959568952,0.2056,2427.7,2427.5,4.699]
[1750959571120,0.98466975,2427.9,2427.5,5.44919]
[1750959571344,0.2056,2427.9,2427.5,5.44919]
[1750959572210,0.2056,2427.9,2427.6,0.8283]
[1750959572622,0.98466975,2428.0,2427.7,4.699]
[1750959572824,10.2056,2428.1,2427.8,4.699]
[1750959573024,11.19026975,2428.1,2427.8,4.699]
[1750959573224,10.2056,2428.1,2427.8,4.699]
[1750959573451,11.19026975,2428.1,2427.8,4.699]
[1750959573656,10.2056,2428.1,2427.8,4.699]
[1750959573962,11.19026975,2428.1,2427.8,4.699]
[1750959574153,0.98466975,2428.0,2427.8,4.699]
[1750959577217,0.98466975,2427.9,2427.6,1.0339]
[1750959577546,0.98466975,2428.0,2427.6,1.0339]
[1750959577747,0.98466975,2427.9,2427.6,1.0339]
[1750959577919,0.98466975,2428.0,2427.6,1.0339]
[1750959578120,0.98466975,2427.9,2427.6,1.0339]
[1750959578343,0.98466975,2428.0,2427.6,1.0339]
[1750959578528,0.98466975,2427.9,2427.6,1.0339]
[1750959578738,1.11902698,2427.9,2427.4,0.8136]
[1750959578935,1.19026975,2427.8,2427.4,2.7862]
[1750959579335,0.2056,2427.8,2427.4,2.7862]
[1750959579541,0.2056,2427.7,2427.4,2.5806]
[1750959579942,0.2056,2427.7,2427.4,1.767]
[1750959580360,7.73766975,2427.8,2427.5,4.7]
[1750959580541,0.87223395,2427.7,2427.5,4.7]
[1750959581043,0.2056,2427.5,2427.3,4.702]
[1750959581439,0.802,2427.6,2427.3,4.702]
[1750959582877,0.802,2427.4,2427.3,0.002]
[1750959583172,19.64123881,2427.4,2427.3,0.002]
[1750959583399,20.62590856,2427.4,2427.3,0.002]
[1750959587643,25.29554273,2427.4,2427.3,0.002]
[1750959589081,15.49657363,2427.2,2427.1,0.002]
[1750959589248,30.80529202,2427.2,2427.1,0.002]
[1750959589448,34.6827283,2427.2,2427.1,0.002]
[1750959590357,21.46703628,2427.2,2427.1,0.002]
[1750959591147,22.45209653,2427.2,2427.1,0.002]
[1750959591343,35.66778855,2427.2,2427.1,0.002]
[1750959591549,30.56275467,2427.2,2427.1,0.002]
[1750959592246,34.6827283,2427.2,2427.1,0.002]
[1750959592452,35.66762927,2427.2,2427.1,0.002]
[1750959593579,34.6827283,2427.2,2427.1,0.002]
[1750959601288,34.6327283,2427.2,2427.1,0.002]
[1750959601508,15.20403628,2427.2,2427.1,0.002]
[1750959601664,21.95603628,2427.2,2427.1,0.002]
[1750959604895,21.12943628,2427.2,2427.1,0.002]
[1750959605702,9.95,2427.2,2427.1,0.002]
[1750959605876,16.7,2427.2,2427.1,0.002]
[1750959610299,0.7607,2427.6,2427.1,4.702]
[1750959610486,0.2056,2427.2,2427.1,4.702]
[1750959610693,6.9496,2427.2,2427.1,5.25241]
[1750959611881,6.9486,2427.2,2427.1,5.25241]
[1750959612585,1.755,2428.0,2427.2,0.8001]
[1750959612788,0.2056,2427.5,2427.3,4.7]
[1750959613007,0.2056,2427.5,2427.4,4.7]
[1750959613296,6.9486,2427.5,2427.4,4.7]
[1750959616915,0.2056,2427.5,2427.4,4.7]
[1750959617113,6.9436,2427.5,2427.4,4.7]
[1750959617576,6.9426,2427.5,2427.4,4.7]
[1750959619077,0.2056,2427.5,2427.4,4.7]
[1750959619280,0.2056,2427.5,2427.4,5.3125911]
[1750959619602,10.2056,2427.7,2427.5,0.7541]
[1750959619805,10.2056,2427.7,2427.6,4.7]
[1750959620006,10.2056,2427.7,2427.6,5.30666911]
[1750959621005,0.2056,2427.7,2427.6,5.30666911]
[1750959621213,10.2056,2427.7,2427.6,5.30666911]
[1750959621388,10.2056,2427.7,2427.6,4.7]
[1750959632123,6.734,2427.8,2427.7,0.7671]
[1750959632615,6.734,2427.9,2427.7,0.7671]
[1750959632826,0.2056,2428.0,2427.8,4.7]
[1750959632989,0.2056,2428.0,2427.9,0.54671]
[1750959634220,10.2056,2428.0,2427.8,4.7]
[1750959634394,18.75131839,2428.0,2427.8,4.7]
[1750959636010,6.733,2427.9,2427.8,4.7]
[1750959636411,6.733,2427.9,2427.5,4.7]
[1750959636594,0.2056,2427.6,2427.5,4.7]
[1750959636794,6.9386,2427.6,2427.5,4.7]
[1750959638617,6.733,2427.8,2427.5,5.24567]
[1750959638822,6.733,2427.8,2427.6,0.7615]
[1750959639712,0.2056,2427.9,2427.6,0.7615]
[1750959639912,6.9386,2427.9,2427.6,0.7615]
[1750959640102,0.2056,2427.9,2427.6,1.382777]
[1750959640298,6.9386,2427.9,2427.6,1.382777]
[1750959640707,6.9386,2427.9,2427.6,0.7615]
[1750959641430,0.2056,2427.9,2427.6,0.7615]
[1750959641730,0.001,2428.2,2427.6,0.7615]
[1750959641918,6.9396,2428.2,2427.9,0.7589]
[1750959642099,0.2066,2428.2,2427.9,0.7589]
[1750959645742,0.2066,2428.2,2427.8,0.2056]
[1750959647137,0.2056,2427.8,2427.3,1.0075]
[1750959647309,0.2056,2427.8,2427.3,2.7565]
[1750959647507,0.2056,2427.7,2427.3,2.7565]
[1750959650652,0.2056,2427.9,2427.4,1.0075]
[1750959653844,0.2056,2427.9,2427.5,0.7541]
[1750959655564,0.2056,2427.9,2427.5,1.02497]
[1750959659564,0.2056,2427.9,2427.6,0.81]
[1750959662435,0.2056,2427.9,2427.4,0.2056]
[1750959662436,0.001,2428.2,2427.9,0.81]
[1750959662640,0.001,2428.2,2428.1,0.81]
[1750959663047,0.001,2428.2,2428.1,1.0659]
[1750959663241,0.001,2428.2,2428.1,9.81721839]
[1750959664056,0.001,2428.2,2428.1,1.2715]
[1750959665274,0.001,2428.2,2428.1,2.559]
[1750959669801,0.001,2428.2,2427.3,4.66973141]
[1750959669802,0.001,2428.2,2427.7,2.5635]
[1750959670004,0.2056,2428.1,2427.7,2.7691]
[1750959670304,0.2056,2428.1,2427.7,1.0201]
[1750959670454,0.2056,2427.9,2427.4,1.0201]
[1750959670651,0.2056,2427.9,2427.4,1.29701]
[1750959671094,0.2056,2427.9,2427.4,1.0201]
[1750959671295,0.2056,2427.5,2427.2,0.8222]
[1750959675886,0.8186,2427.8,2427.2,0.8222]
[1750959676089,0.2056,2427.7,2427.3,0.2056]
[1750959676611,0.2056,2427.7,2427.4,0.7846]
[1750959676794,0.2056,2427.8,2427.5,1.755]
[1750959679217,0.2056,2427.8,2427.5,2.02807]
[1750959682708,0.2056,2427.8,2427.4,1.9616]
[1750959683391,0.2056,2427.6,2427.4,1.756]
[1750959686275,0.2056,2427.6,2427.2,0.2056]
[1750959686480,0.2056,2427.6,2427.2,1.9616]
[1750959686704,0.2056,2427.6,2427.2,2.24]
[1750959688411,0.7542,2427.7,2427.2,2.0344]
[1750959688705,0.2056,2427.3,2427.2,1.756]
[1750959693020,0.2056,2427.3,2427.1,0.002]
[1750959697819,0.8131,2427.4,2427.1,0.002]
[1750959704329,0.7976,2428.1,2427.3,0.8082]
[1750959704530,0.2056,2427.7,2427.3,0.8082]
[1750959704924,0.7976,2428.1,2427.3,12.66551046]
[1750959705229,0.2056,2428.0,2427.5,0.2056]
[1750959705528,0.2056,2428.0,2427.6,0.8082]
[1750959708034,0.2056,2427.8,2427.5,1.75]
[1750959716037,6.735,2428.2,2427.5,1.9556]
[1750959716038,0.2056,2427.9,2427.5,1.9556]
[1750959716341,0.2056,2427.9,2427.6,4.7]
[1750959717436,0.2056,2427.9,2427.7,0.8213]
[1750959717643,0.2056,2428.1,2427.7,0.8213]
[1750959717845,0.2056,2428.1,2427.7,1.56899]
[1750959718940,0.2056,2428.1,2427.8,4.7]
[1750959719240,0.2056,2428.1,2427.9,4.7]
[1750959719815,0.2056,2428.1,2427.7,1.56899]
[1750959720515,0.2056,2428.1,2427.7,0.8213]
[1750959724457,0.001,2428.2,2428.1,2.5768]
[1750959726754,0.001,2428.2,2428.0,0.2056]
[1750959726943,0.001,2428.2,2427.9,2.7529]
[1750959728929,0.001,2428.2,2427.9,1.9556]
[1750959731248,0.001,2428.2,2427.9,0.2056]
[1750959734050,0.001,2428.2,2428.0,0.782]
[1750959736354,0.001,2428.2,2427.9,0.2056]
[1750959737451,0.2066,2428.2,2427.8,2.531]
[1750959739358,0.001,2428.2,2427.5,0.8186]
[1750959739562,0.2056,2427.8,2427.3,0.8186]
[1750959739764,0.782,2427.7,2427.2,1.749]
[1750959740067,0.2056,2427.5,2427.2,1.749]
[1750959741226,2.6653359,2427.5,2427.2,1.749]
[1750959741759,0.2056,2427.5,2427.2,1.749]
[1750959748433,1.003,2427.5,2427.1,0.002]
[1750959748848,0.2056,2427.5,2427.1,0.002]
[1750959750076,1.80924968,2427.9,2427.3,8.54571839]
[1750959750377,1.0296,2427.9,2427.4,0.2056]
[1750959752040,0.2056,2427.9,2427.4,0.2056]
[1750959752288,0.2056,2427.9,2427.4,1.9546]
[1750959752948,0.2056,2427.9,2427.5,0.7939]
[1750959755066,0.001,2428.2,2427.6,8.54571839]
[1750959755271,0.2056,2428.1,2427.7,1.13956184]
[1750959755972,0.001,2428.2,2427.8,0.7926]
[1750959756176,0.001,2428.2,2427.9,0.2056]
[1750959761460,0.001,2428.2,2427.9,1.9576]
[1750959768881,0.7894,2428.1,2427.8,1.752]
[1750959769127,0.2056,2428.0,2427.8,1.752]
[1750959775985,0.001,2428.2,2427.9,0.7854]
[1750959776296,0.2066,2428.2,2427.9,0.7854]
[1750959776494,0.2066,2428.2,2427.8,1.9576]
[1750959776700,0.2066,2428.2,2427.8,2.2319]
[1750959777894,0.2066,2428.2,2427.9,0.7854]
[1750959777895,0.001,2428.2,2427.9,0.7854]
[1750959778113,0.001,2428.2,2428.0,0.2056]
[1750959778690,0.001,2428.2,2428.1,0.7854]
[1750959778918,0.001,2428.2,2428.1,0.991]
[1750959779255,0.001,2428.2,2428.1,1.50197625]
[1750959780498,0.001,2428.2,2428.1,14.16614116]
[1750959781224,0.001,2428.5,2428.4,4.698]
[1750959781431,0.001,2428.5,2428.4,20.10365612]
[1750959787351,0.001,2428.7,2428.6,9.58749861]
[1750959787558,0.001,2428.7,2428.6,12.79024032]
[1750959787758,0.001,2428.7,2428.6,8.87824171]
[1750959787953,0.001,2428.7,2428.6,12.99584032]
[1750959788361,0.001,2428.7,2428.6,30.28984032]
[1750959789825,0.001,2428.7,2428.6,31.49584032]
[1750959791963,0.001,2428.7,2428.6,32.04584032]
[1750959793264,0.001,2428.9,2428.6,32.04584032]
[1750959793265,0.001,2428.9,2428.8,15.52]
[1750959793437,0.001,2428.9,2428.8,23.32597921]
[1750959793636,0.001,2428.9,2428.8,23.53157921]
[1750959793956,0.001,2428.9,2428.8,27.64883876]
[1750959794360,0.001,2428.9,2428.8,25.29357921]
[1750959794566,0.001,2428.9,2428.8,5.95857921]
[1750959794860,0.001,2428.9,2428.8,6.6596]
[1750959795430,0.001,2428.9,2428.8,7.456]
[1750959795837,0.001,2428.9,2428.8,14.209]
[1750959798560,0.001,2428.9,2428.8,18.32625955]
[1750959798764,0.001,2428.9,2428.8,17.3079524]
[1750959802887,0.001,2428.9,2428.8,16.5115524]
[1750959803776,0.6506,2429.0,2428.8,13.4106]
[1750959803979,0.6506,2429.0,2428.9,4.695]
[1750959805187,0.2056,2429.0,2428.6,4.695]
[1750959805355,0.2056,2428.8,2428.6,4.695]
[1750959805555,0.55,2429.0,2428.3,4.695]
[1750959805755,0.2056,2428.6,2428.3,4.695]
[1750959806990,0.7882,2428.5,2428.3,4.695]
[1750959810891,0.2056,2428.6,2428.3,4.695]
[1750959811462,0.2056,2428.6,2428.3,6.454]
[1750959812912,0.7751,2428.9,2428.3,15.56866]
[1750959813206,0.7751,2428.9,2428.5,0.2056]
[1750959816776,0.7751,2428.9,2428.6,4.695]
[1750959822215,0.2056,2428.8,2428.5,4.695]
[1750959831726,0.2056,2428.8,2428.6,4.695]
[1750959834935,0.7751,2428.9,2428.6,4.695]
[1750959835117,0.7751,2428.9,2428.6,4.9006]
[1750959836911,0.7751,2428.9,2428.6,5.39066]
[1750959837447,0.7751,2428.9,2428.7,4.695]
[1750959840854,0.2056,2429.0,2428.7,4.695]
[1750959841004,0.98727041,2428.9,2428.7,4.695]
[1750959841206,0.2056,2429.0,2428.7,4.695]
[1750959841406,0.98729389,2428.9,2428.7,4.695]